Cogmind - Beta 13 @@@ ROGUE MODE // 2024.03.21 @ 22:58:07 Player: darki Result: Destroyed by as-49918 with Assembled Rifle Performance ------------- Evolutions (0) 0 Regions Visited (2) 400 Robots Destroyed (17) 85 Value Destroyed (294) 294 Prototype IDs (0) 0 Alien Tech Used (0) 0 Bonus (-434) -434 TOTAL SCORE: 345 Bonus ------- Friendly Fire -434 Cogmind --------- Core Integrity 0/250 Matter 200/300 Energy 50/100 System Corruption 0% Temperature Warm (101) Movement Core (1450) Ox28 Location -10/Mines Parts ------- > --- POWER (1) -------- (None) > --- PROPULSION (2) --- (None) > --- UTILITY (2) ------ Huge Storage Unit Signal Interpreter > --- WEAPON (2) ------- Medium Laser Beamcaster > --- INVENTORY (25) --- Light Treads Aluminum Leg Aluminum Leg Heat Sink Huge Storage Unit High-capacity Battery (250) Large Matter Pod (150) Weapon Shielding Tractor Beam Small Laser Light Assault Rifle Peak State ------------ > --- POWER ------------ Light Ion Engine > --- PROPULSION ------- Light Treads Light Treads > --- UTILITY ---------- Medium Storage Unit Signal Interpreter > --- WEAPON ----------- Medium Laser Beamcaster > --- INVENTORY -------- Light Ion Engine Aluminum Leg Wheel Compact Wheel Heat Sink High-capacity Battery Large Matter Pod Tractor Beam Light Assault Rifle Grenade Launcher [Rating: 12] Favorites ----------- Power Light Ion Engine Engine Light Ion Engine Propulsion Light Treads Treads Light Treads Leg Aluminum Leg Wheel Wheel Utility Medium Storage Unit Device Heat Sink Storage Medium Storage Unit Processor Signal Interpreter Weapon Light Assault Rifle Energy Gun Medium Laser Ballistic Gun Light Assault Rifle Launcher Grenade Launcher Build | -11 -10 -10 ------- Run | Yrd Mat Min Slots Evolved . | . . . Power . | . . . Propulsion . | . . . Utility . | . . . Weapon . | . . . Parts Attached 15 | . 7 8 Power 1 | . . 1 Engine 1 | . . 1 Core . | . . . Reactor . | . . . Propulsion 4 | . 2 2 Treads 2 | . 2 . Leg . | . . . Wheel 2 | . . 2 Hover . | . . . Flight . | . . . Utility 4 | . 3 1 Device 1 | . 1 . Storage 2 | . 1 1 Processor 1 | . 1 . Hackware . | . . . Protection . | . . . Artifact . | . . . Weapon 6 | . 2 4 Energy Gun 4 | . 1 3 Energy Cannon . | . . . Ballistic Gun . | . . . Ballistic Cannon . | . . . Launcher 2 | . 1 1 Special Weapon . | . . . Impact Weapon . | . . . Slashing Weapon . | . . . Piercing Weapon . | . . . Special Melee Weapon . | . . . Unidentified Prototypes . | . . . Parts Lost 6 | . 1 5 Power 2 | . . 2 Propulsion 3 | . 1 2 Utility . | . . . Weapon 1 | . . 1 Highest Loss Streak 5 | . 1 5 To Critical Strikes . | . . . Average Slot Usage (%) 99 | . 99 99 Engine 14 | . 14 14 Treads 22 | . 17 27 Leg 5 | . 9 . Device 6 | . 11 . Storage 14 | . 14 14 Processor 7 | . 1 14 Energy Gun 12 | . 4 23 Ballistic Gun 12 | . 19 3 Launcher 2 | . 4 . Naked Turns . | . . . Heaviest Build 90 | 10 18 90 Greatest Support 40 | 20 40 40 Greatest Overweight (x) 2 | . . 2 Average Overweight (x) . | . . . Largest Inventory Capacity 25 | . 10 25 Average Capacity 13 | . 9 17 Most Carried 14 | . 10 14 Average Carried 10 | . 9 11 Final Capacity 25 | 8 10 25 Final Carried 11 | 6 10 11 Class Distribution -------------------- 100% | Mutant Dominant Class ---------------- Mutant | -10/Materials Mutant | -10/Mines Resources | -11 -10 -10 ----------- Run | Yrd Mat Min Matter Collected 599 | 186 366 47 Remotely . | . . . Salvage Created 495 | . 358 137 Parts 35 | . 31 4 Haulers Intercepted 1 | . 1 . Recyclers Shooed . | . . . Parts Field Recycled . | . . . Retrieved Matter . | . . . Parts Self-Destructed . | . . . Prevented . | . . . Kills | -11 -10 -10 ------- Run | Yrd Mat Min Combat Hostiles Destroyed 23 | . 11 12 Guns 6 | . 6 . AOE 17 | . 5 12 Classes Destroyed 7 | . 6 1 Tunneler 1 | . 1 . Hauler 1 | . 1 . Operator 1 | . 1 . Watcher 1 | . 1 . Swarmer 6 | . 6 . Grunt 6 | . 5 1 Assembled 12 | . . 12 Thug 1 | . . 1 Best Kill Streak 12 | . 3 12 Combat Bots Only 12 | . 3 12 Max Kills in Single Turn 4 | . 2 4 Gunslinging . | . . . Exploded 3 | . 2 3 Melee . | . . . Uniques/NPCs Destroyed . | . . . Combat | -11 -10 -10 -------- Run | Yrd Mat Min Hostile Shots Fired 66 | . 46 20 Missed 15 | . 12 3 Damage Taken 862 | . 343 519 Core 254 | . 57 197 Absorbed by Shields . | . . . Core Remaining (%) 100 | 100 . . Volleys Fired 64 | . 49 15 Largest 2 | . 2 2 Hottest 125 | . 70 125 Shots Fired 122 | . 98 24 Gun 112 | . 94 18 Cannon . | . . . Launcher 10 | . 4 6 Special . | . . . Kinetic 78 | . 71 7 Thermal 34 | . 23 11 Explosive 10 | . 4 6 Electromagnetic . | . . . Robot Hit Streak 9 | . 7 9 Robot Miss Streak 5 | . 5 2 Penetration Max . | . . . Secondary Targets 2 | . 2 . Max Gunslinging Chain 1 | . 1 . Shots Hit Robots 65 | . 48 17 Core Hits 61 | . 26 35 Critical Kills . | . . . Critical Parts Destroyed 2 | . 1 1 Critical Strikes 4 | . 2 2 Burn 2 | . 1 1 Destroy 2 | . 1 1 Melee Attacks . | . . . Impact . | . . . Slashing . | . . . Piercing . | . . . Sneak Attacks . | . . . Combat Hostiles . | . . . Follow-up Attacks . | . . . Damage Inflicted 1766 | . 772 994 Guns 584 | . 407 177 Cannons . | . . . Explosions 1182 | . 365 817 Melee . | . . . Ramming . | . . . Kinetic 366 | . 320 46 Thermal 218 | . 87 131 Explosive 1182 | . 365 817 Electromagnetic . | . . . Impact . | . . . Slashing . | . . . Piercing . | . . . Highest Corruption . | . . . Average Corruption . | . . . Corruption Purged . | . . . Corruption Blocked . | . . . Overload Shots . | . . . Overflow Damage 2 | . . 2 Projectiles . | . . . Explosions 2 | . . 2 Melee . | . . . Knockbacks . | . . . Impact . | . . . Kinetic . | . . . Secondary . | . . . Self-Inflicted Damage 67 | . . 67 Shots 3 | . . 3 Rammed . | . . . Targets Rammed . | . . . Kicked . | . . . Crushed . | . . . Highest Temperature 130 | . 20 130 Average Temperature 30 | . 9 59 Received Heat Transfer 140 | . 111 29 Siege Activations . | . . . Robots Corrupted . | . . . Combat Hostiles . | . . . Parts Fried . | . . . Impact Corruptions . | . . . Robots Melted 1 | . 1 . Combat Hostiles . | . . . Parts Melted 2 | . 2 . Heat Transferred 740 | . 333 407 Parts Sabotaged . | . . . Parts Stolen . | . . . Parts Stripped . | . . . Power Chain Reactions . | . . . Alert | -11 -10 -10 ------- Run | Yrd Mat Min Peak Influence 258 | . 258 39 Initial 39 | . . 39 Average 77 | . 123 21 Maximum Alert Level 1 | . 1 . Low Security (%) 93 | . 89 100 Level 1 6 | . 10 . Level 2 . | . . . Level 3 . | . . . Level 4 . | . . . Level 5 . | . . . High Security . | . . . Max Security . | . . . Squads Dispatched 3 | . 3 . Investigation 2 | . 2 . Extermination . | . . . Reinforcement 1 | . 1 . Assault . | . . . Garrison . | . . . Intercept . | . . . Searches Triggered . | . . . Construction Impeded . | . . . Haulers Reinforced . | . . . Active Scanning Responses . | . . . Cargo Convoy Interrupts . | . . . Stealth | -11 -10 -10 --------- Run | Yrd Mat Min Distress Signals 2 | . 2 . Communications Jammed . | . . . Distress Signals . | . . . Times Spotted 42 | . 20 22 Peak Tracking Total 9 | . 4 9 Tactical Retreats 1 | . 1 . Traps | -11 -10 -10 ------- Run | Yrd Mat Min Traps Triggered 2 | . 2 . Indirectly . | . . . Trap Hack Attempts . | . . . Triggered . | . . . Disarmed . | . . . Reprogrammed . | . . . Reused . | . . . Traps Extracted . | . . . Installed . | . . . Triggered . | . . . Machines | -11 -10 -10 ---------- Run | Yrd Mat Min Machines Disabled 1 | . 1 . Max in Single Turn 1 | . 1 . Machines Repaired . | . . . Machines Dismantled . | . . . Machines Sabotaged . | . . . Overloaded Fab Kills . | . . . Hacking | -11 -10 -10 --------- Run | Yrd Mat Min Machines Accessed . | . . . Terminals . | . . . Fabricators . | . . . Repair Stations . | . . . Recycling Units . | . . . Scanalyzers . | . . . Garrison Access . | . . . Total Hacks . | . . . Successful . | . . . Failed . | . . . Catastrophic . | . . . Database Lockouts . | . . . Manual . | . . . Terminals . | . . . Fabricators . | . . . Repair Stations . | . . . Recycling Units . | . . . Scanalyzers . | . . . Garrison Access . | . . . Terminal Hacks . | . . . Fabricator Hacks . | . . . Repair Station Hacks . | . . . Recycling Unit Hacks . | . . . Scanalyzer . | . . . Garrison Access Hacks . | . . . Unauthorized Hacks . | . . . Terminals . | . . . Fabricators . | . . . Repair Stations . | . . . Recycling Units . | . . . Scanalyzers . | . . . Garrison Access . | . . . Data Cores Recovered . | . . . Used . | . . . Hacking Detections . | . . . Full Trace Events . | . . . Feedback Events . | . . . Feedback Blocked . | . . . Robot Schematics Acquired . | . . . Robots Built . | . . . Authchips . | . . . Time . | . . . Total Robot Build Rating . | . . . Part Schematics Acquired . | . . . Parts Built . | . . . Authchips . | . . . Time . | . . . Total Part Build Rating . | . . . Parts Repaired . | . . . Time . | . . . Parts Recycled . | . . . Recycled Matter . | . . . Retrieved Matter . | . . . Retrieved Components . | . . . Parts Scanalyzed . | . . . Part Schematics Acquired . | . . . Parts Damaged . | . . . Bothacking | -11 -10 -10 ------------ Run | Yrd Mat Min Used RIF Installer . | . . . Robots Hacked . | . . . Non-combat . | . . . Combat . | . . . Robot Hacks Applied . | . . . Relay Couplers Released . | . . . Fabnet Peak Effective % . | . . . Robots Rewired . | . . . Allies Hacked . | . . . Hacks Repelled . | . . . Allies | -11 -10 -10 -------- Run | Yrd Mat Min Total Allies 3 | . . 3 Largest Group 3 | . . 3 Highest-Rated Group 40 | . . 40 Highest-Rated Ally 16 | . . 16 Total Orders . | . . . Ally Attacks 11 | . . 11 Total Damage 158 | . . 158 Kills 3 | . . 3 Allies Corrupted . | . . . Allies Melted . | . . . Intel | -11 -10 -10 ------- Run | Yrd Mat Min Robot Analysis Total . | . . . Derelict Logs Recovered 1 | . . 1 Drone Launches . | . . . Drone Recoveries . | . . . Exploration | -11 -10 -10 ------------- Run | Yrd Mat Min Turns Passed 1686 | . 939 747 Spaces Moved 837 | 1 516 320 Core . | . . . Treads 633 | . 313 320 Legs 204 | 1 203 . Wheels . | . . . Hover . | . . . Flight . | . . . Fastest Speed 120 | 120 120 160 Average Speed 171 | 120 144 216 Slowest Speed 320 | 120 160 320 Overloaded Moves . | . . . Propulsion Burnouts . | . . . Robots Hopped . | . . . Cave-ins Triggered . | . . . Exploration Rate (%) 55 | 2 80 83 Regions Visited 2 Branch Regions 1 Pre-discovered Areas . | . . . Known Exits Taken 1 | . 1 . Unknown Exits Taken 1 | 1 . . Scrap Searched 1 | . . 1 Spaces Dug . | . . . Terrain Destroyed 60 | . 15 45 Melee . | . . . Projectile . | . . . AOE 60 | . 15 45 Terrain Rammed . | . . . Walls Destroyed . | . . . Machines Disabled . | . . . Actions | -11 -10 -10 --------- Run | Yrd Mat Min Total 980 | . 627 353 Wait 50 | . 47 3 Move 835 | . 515 320 Hop . | . . . Pick Up 10 | . 6 4 Fast Attach 3 | . 2 1 Attach 5 | . 1 4 Detach 1 | . . 1 Swap 7 | . 4 3 Drop 5 | . 3 2 Fire 64 | . 49 15 Melee . | . . . Ram . | . . . Kick . | . . . Crush . | . . . Escape Stasis . | . . . Rewire . | . . . Trap . | . . . Miscellaneous . | . . . Route ------- -11/Scrapyard -10/Materials (discovered 3 exits: *Mat x2 / *Min) -10/Mines (discovered 2 exits: *Mat x2) History --------- Turn | Location | Event 1 | -11/Scrapyard | Discovered new exit (range 0) 1 | -11/Scrapyard | Entered Materials 317 | -10/Materials | Build established: Mutant 402 | -10/Materials | Discovered new exit (range 12) 536 | -10/Materials | Discovered new exit (range 4) 863 | -10/Materials | Identified exit to Materials 916 | -10/Materials | Discovered new exit (range 15) 938 | -10/Materials | Identified exit to Mines 940 | -10/Materials | Entered Mines 964 | -10/Mines | Met a Derelict bent on vengeance 1073 | -10/Mines | Assisted by bots powering up and referring to "LRC-V3" 1163 | -10/Mines | Learned location of 1 exit from Materials 1505 | -10/Mines | Discovered exit to Materials (range 10) 1649 | -10/Mines | Discovered exit to Materials (range 6) 1650 | -10/Mines | Assembled infested the area 1655 | -10/Mines | Assisted by a Guerilla fighting off Assembled 1671 | -10/Mines | Core integrity fell below 50% 1682 | -10/Mines | Core integrity fell below 20% 1687 | -10/Mines | Destroyed by as-49918 with Assembled Rifle Last Messages --------------- 01671_ as-55026 destroyed. 01671_ as-81021 destroyed. 01672_ as-17162 suffers critical hit (Burn). 01673_ as-17162 destroyed. 01673_ as-72706 destroyed. 01673_ as-27433 destroyed. 01673_ as-26448 destroyed. 01675_ Grenade Launcher destroyed. 01676_ The unstable cave ceiling collapses. 01676_ 10-G7A(h) destroyed. 01677_ The unstable cave ceiling collapses. 01677_ as-35998 destroyed. 01680_ Destroyed Asb. Hover Unit. 01681_ Trooper 1b destroyed. 01681_ Trooper 1a destroyed. 01681_ U-05 Engineer destroyed. 01682_ Lgt. Ion Engine destroyed. 01684_ as-67173 destroyed. 01687_ Com. Wheel destroyed. 01687_ Wheel destroyed. Map ----- +----------------------------------------------------+ | ## #??????### #########????????????? | | ## #?????#### #????????????????????? | | ## #?????# #????????????????????? | | #?????# ####????????????????????? | | #?????# #???????????????????????? | | ########### ###?????????????????????? | | #??# ##????????????????????? | | #??## ##???????????????????? | | ?### ###### ######??????????????? | | ## #????# #??????????????? | | # ##???# ## #??????????????? | | #???## ## #####??????????? | | #????## ### #??????????? | | #?????## #?# #??????????? | | ## #??????# #?##### #??????????? | | #### ##??????# #?????# #??????????? | | #??####??????? #???### #??????????? | | ??????????????###??## #??????????? | | ???????????????????# #??????????? | | ??????????????????## ##??????????? | | ?????????????????## #####???????? | | ?????????????????# # # ##??????? | | ?????????????????# ###????? | | ?????????????????## % #????? | | ??????????????????## #????? | | ???????????????????# d@ < #????? | | ???????????????????## d #???? | | ???????????????????# #?? | | ??????????????????# % #?? | | ?????????????????# # ! #?? | | ????????????????# ## # #?? | | ???????????????# ?## ##?? | | ???????????????# ?? ##??? | | ???????????????# ?? #???? | | ???????????????## # ?? #???? | | ????????????????#### ?? a #???? | | ???????????????????# ?? ##???? | | ???????????????????# ??? #????? | | ???????????????????##???## ####????? | | ?????????????????????????? ???????? | | ?????????????????????????? ????????? | | ????????????????????????????????????? | | ????????????????????????????????????? | | ????????????????????????????????????? | | ????????????????????????????????????? | | ????????????????????????????????????? | | ????????????????????????????????????? | | ????????????????????????????????????? | | ????????????????????????????????????? | | | +----------------------------------------------------+ Best States ------------- Heat Dissipation 35 Energy Generation 10 Energy Capacity 125 Matter Stores 300 Matter Capacity 300 Sight Range 16 Terrain Scan Density 10 Evasion (%) 55 Recoil Reduction 2 Item Schematics ----------------- None Robot Schematics ------------------ None Fabricated ------------ Nothing Alien Tech Used ----------------- None Achievements -------------- None Challenges ------------ None Game ------ Seed TargetCobblerSaw Manual? 0 Play Time 00:08:42 Cumulative 172.1 hours Start 2024.03.21 @ 22:51:50 End 2024.03.21 @ 22:58:07 Sessions 1 Manual Loads 0 Difficulty Rogue Special Mode None Game No. 181 Rogue 181 Adventurer 0 Explorer 0 Win Type - Total 1 Types 1/0/0/0/0/0/0/0/0 Lore% 56 Gallery% 72 Achievement% 57 Wizard Run 0 Options --------- Layout 1 ASCII 0 Keyboard 0 Movement Numpad Keybinds 0 Fullscreen 1 Font 24/Smallcaps Map View 50x35 Zoom Use 0% Tactical HUD 1 Map Filters NONE Filters NONE Steam 1 RUN: 323d1d01-6d0b-4628-aaf2-ace1e040856e